bitfinex/quotes_SOLUSD_20240814
["timestamp","ask_amount","ask_price","bid_price","bid_amount"]
[1723649857341,39.69,145.66,145.61,6.4691]
[1723649857670,20.0,145.7,145.61,6.4691]
[1723649857671,39.69,145.68,145.61,6.4691]
[1723649857866,20.0,145.7,145.61,6.4691]
[1723649857867,39.69,145.7,145.61,6.4691]
[1723649858069,39.69,145.7,145.62,45.0]
[1723649858976,39.69,145.68,145.61,6.4691]
[1723649859270,39.69,145.7,145.61,6.4691]
[1723649859652,39.69,145.7,145.62,45.12549]
[1723649859849,39.69,145.7,145.6,16.40439]
[1723649859850,20.0,145.63,145.6,0.12549]
[1723649860156,39.69,145.64,145.51,6.6461]
[1723649860157,0.12549,145.57,145.51,6.6461]
[1723649860361,39.69,145.54,145.51,6.6461]
[1723649860757,39.69,145.56,145.51,6.6461]
[1723649861369,39.69,145.58,145.51,6.6461]
[1723649862144,39.69,145.56,145.51,6.6461]
[1723649862374,0.12549,145.57,145.51,6.6461]
[1723649862375,39.69,145.54,145.51,6.6461]
[1723649863455,39.69,145.56,145.51,6.6461]
[1723649864589,39.69,145.58,145.51,6.6461]
[1723649864975,39.69,145.56,145.51,6.6461]
[1723649866976,39.69,145.58,145.51,6.6461]
[1723649867886,39.69,145.62,145.54,21.4308]
[1723649868568,47.15860541,145.69,145.56,0.12549]
[1723649868769,39.69,145.67,145.56,65.37647]
[1723649869094,39.69,145.67,145.58,0.12549]
[1723649869264,39.69,145.67,145.58,45.0]
[1723649869781,59.69,145.67,145.57,21.4308]
[1723649870088,39.69,145.61,145.57,21.4308]
[1723649870376,39.69,145.59,145.57,21.4308]
[1723649870900,39.69,145.59,145.57,6.331]
[1723649871482,39.69,145.59,145.53,15.3165]
[1723649871662,20.25098,145.64,145.53,21.628]
[1723649871663,39.69,145.57,145.53,21.628]
[1723649871865,39.69,145.61,145.53,21.628]
[1723649872064,39.69,145.62,145.53,21.628]
[1723649872867,39.69,145.62,145.54,0.12549]
[1723649873069,39.69,145.62,145.54,45.12549]
[1723649873388,39.69,145.6,145.53,21.628]
[1723649874191,39.69,145.62,145.54,0.12549]
[1723649874488,39.69,145.64,145.54,45.50196]
[1723649874675,39.69,145.67,145.56,0.12549]
[1723649874880,39.69,145.67,145.57,15.1714]
[1723649875065,39.69,145.67,145.58,0.37647]
[1723649875267,39.69,145.65,145.57,15.1714]
[1723649875474,39.69,145.65,145.58,45.0]
[1723649875790,39.69,145.65,145.57,15.1714]
[1723649877191,20.0,145.67,145.58,0.25098]
[1723649877192,39.69,145.67,145.58,0.25098]
[1723649877490,59.69,145.71,145.59,6.23759]
[1723649877673,59.69,145.71,145.6,45.0]
[1723649877674,39.69,145.69,145.6,45.0]
[1723649877993,39.69,145.67,145.59,6.23759]
[1723649878174,15.2604,145.66,145.49,2.74310327]
[1723649878492,20.0,145.55,145.47,6.1121]
[1723649878690,0.12549,145.54,145.47,6.1121]
[1723649879674,39.69,145.55,145.47,6.1121]
[1723649881019,39.69,145.53,145.47,6.1121]
[1723649881181,39.69,145.51,145.47,6.1121]
[1723649882016,0.12549,145.52,145.47,6.1121]
[1723649882217,39.69,145.53,145.47,6.1121]
[1723649882512,59.69,145.55,145.47,6.1121]
[1723649882679,0.37647,145.54,145.47,6.1121]
[1723649882882,0.12549,145.54,145.47,6.1121]
[1723649883083,20.0,145.59,145.47,6.1121]
[1723649883299,39.69,145.58,145.48,45.25098]
[1723649883505,39.69,145.6,145.48,45.50196]
[1723649884088,39.69,145.62,145.5,0.12549]
[1723649884301,39.69,145.62,145.5,65.50196]
[1723649884691,59.69,145.64,145.52,0.12549]
[1723649884895,381.7,145.65,145.53,21.5332]
[1723649885091,381.7,145.65,145.54,40.19196]
[1723649885413,381.7,145.65,145.55,45.0]
[1723649885593,381.7,145.65,145.58,0.12549]
[1723649885784,298.59,145.7,145.59,15.2427]
[1723649885785,39.69,145.7,145.59,15.2427]
[1723649885990,20.0,145.75,145.62,0.12549]
[1723649886189,39.69,145.74,145.62,20.50196]
[1723649886409,39.69,145.74,145.63,45.0]
[1723649886606,39.69,145.74,145.65,0.12549]
[1723649886813,39.69,145.74,145.66,21.5332]
[1723649886994,40.510964,145.77,145.67,45.37647]
[1723649887194,40.510964,145.77,145.67,0.37647]
[1723649887408,60.510964,145.77,145.67,45.37647]
[1723649887629,40.510964,145.77,145.67,45.12549]
[1723649887797,40.510964,145.77,145.68,0.12549]
[1723649887995,40.510964,145.77,145.68,20.25098]
[1723649888197,40.510964,145.77,145.69,0.12549]
[1723649888510,40.510964,145.77,145.68,20.12549]
[1723649888511,40.510964,145.77,145.68,20.0]
[1723649888686,0.820964,145.77,145.69,45.12549]
[1723649889095,0.820964,145.77,145.7,20.0]
[1723649889293,40.510964,145.77,145.7,20.0]
[1723649889816,40.510964,145.77,145.67,20.0]
[1723649889986,40.510964,145.77,145.68,45.12549]
[1723649890191,40.510964,145.77,145.69,20.0]
[1723649890391,40.510964,145.77,145.7,45.0]
[1723649890710,40.510964,145.77,145.66,21.5332]
[1723649890711,39.69,145.75,145.66,21.5332]
[1723649890899,0.820964,145.77,145.67,65.0]
[1723649890900,40.510964,145.77,145.67,65.0]
[1723649891226,0.820964,145.77,145.68,0.25098]
[1723649891431,0.820964,145.77,145.68,0.12549]
[1723649892138,0.820964,145.77,145.68,0.37647]
[1723649892289,0.820964,145.77,145.69,0.12549]
[1723649892721,0.820964,145.77,145.69,0.25098]
[1723649893026,0.820964,145.77,145.71,0.12549]
[1723649893328,0.820964,145.77,145.72,6.6202]
[1723649893716,0.820964,145.77,145.73,45.12549]
[1723649896020,0.820964,145.77,145.74,16.352]
[1723649897151,39.69,145.87,145.75,65.37647]
[1723649897510,20.0,145.86,145.75,65.37647]
[1723649897717,39.69,145.87,145.75,65.37647]
[1723649898029,34.69,145.87,145.77,6.2745]
[1723649898216,34.69,145.87,145.78,45.12549]
[1723649898955,39.69,145.89,145.78,45.12549]
[1723649899111,20.0,145.88,145.78,45.12549]
[1723649900435,0.12549,145.87,145.78,45.12549]
[1723649900631,0.25098,145.87,145.78,45.12549]
[1723649900835,39.69,145.89,145.78,45.12549]
[1723649901039,22.5347312,145.9,145.78,0.12549]
[1723649901040,59.69,145.87,145.78,0.12549]
[1723649901255,59.69,145.85,145.77,6.2745]
[1723649901752,59.69,145.83,145.77,6.2745]
[1723649901943,0.12549,145.8,145.77,6.2745]
[1723649902448,20.0,145.85,145.77,6.2745]
[1723649902618,39.69,145.85,145.77,6.2745]
[1723649902943,0.12549,145.84,145.77,6.2745]
[1723649903147,39.69,145.85,145.77,6.2745]
[1723649903349,20.0,145.83,145.77,6.2745]
[1723649903530,39.69,145.81,145.77,6.2745]
[1723649903728,20.0,145.73,145.61,6.3732]
[1723649903931,39.69,145.7,145.61,6.3732]
[1723649904135,39.81549,145.72,145.61,6.3732]
[1723649904955,0.12549,145.73,145.61,46.0632]
[1723649905153,0.12549,145.73,145.62,20.0]
[1723649905358,0.25098,145.74,145.63,45.37647]
[1723649905656,0.25098,145.74,145.64,20.12549]
[1723649905657,0.12549,145.74,145.64,20.12549]
[1723649905954,0.12549,145.74,145.64,20.0]
[1723649906143,39.69,145.76,145.65,0.12549]
[1723649906346,0.37647,145.75,145.63,0.12549]
[1723649906736,39.69,145.76,145.64,62.3342]
[1723649906953,20.0,145.79,145.66,0.12549]
[1723649907255,20.0,145.82,145.66,0.12549]
[1723649907256,39.69,145.82,145.68,0.12549]
[1723649907464,20.0,145.85,145.73,16.1322]
[1723649907662,20.0,145.85,145.74,0.12549]
[1723649907824,20.0,145.83,145.74,45.12549]
[1723649908024,39.69,145.84,145.74,45.12549]
[1723649908224,39.69,145.86,145.75,20.0]
[1723649908443,39.69,145.88,145.76,45.12549]
[1723649908649,39.69,145.88,145.77,0.12549]
[1723649908868,39.69,145.88,145.77,0.25098]
[1723649909068,20.0,145.8,145.73,16.1322]
[1723649909238,39.69,145.79,145.73,16.1322]
[1723649909751,39.81549,145.84,145.73,16.1322]
[1723649909953,39.69,145.86,145.73,16.1322]
[1723649910155,39.69,145.86,145.74,20.0]
[1723649910463,640.6,145.87,145.76,0.12549]
[1723649910648,640.6,145.87,145.76,20.37647]
[1723649910852,39.69,145.88,145.78,6.3102]
[1723649911078,39.69,145.88,145.79,45.37647]
[1723649911281,60.510964,145.91,145.79,45.37647]
[1723649911442,40.510964,145.91,145.79,45.37647]
[1723649912162,40.510964,145.91,145.8,0.12549]
[1723649912337,0.820964,145.91,145.81,16.104]
[1723649912537,0.820964,145.91,145.82,45.37647]
[1723649912538,40.510964,145.91,145.82,45.37647]
[1723649912743,40.510964,145.91,145.82,45.12549]
[1723649912944,0.820964,145.91,145.82,45.12549]
[1723649913248,0.820964,145.91,145.83,0.12549]
[1723649913748,0.820964,145.91,145.83,0.37647]
[1723649913951,35.510964,145.93,145.85,6.0851]
[1723649914156,35.510964,145.93,145.86,45.0]
[1723649914458,59.69,145.95,145.86,45.0]
[1723649914645,59.69,145.95,145.85,6.0851]
[1723649914646,39.69,145.95,145.85,6.0851]
[1723649914956,20.0,145.97,145.87,0.12549]
[1723649914957,39.69,145.97,145.87,0.12549]
[1723649915157,45.7751,145.97,145.87,0.37647]
[1723649915373,39.69,145.99,145.88,0.12549]
[1723649915539,39.69,146.01,145.9,0.12549]
[1723649915741,39.69,146.01,145.9,45.37647]
[1723649915942,47.41,146.01,145.9,45.37647]
[1723649916867,20.0,146.02,145.92,6.2468]
[1723649917085,20.0,146.02,145.93,45.12549]
[1723649917292,67.41,146.04,145.93,45.12549]
[1723649917950,0.820964,146.06,145.93,45.12549]
[1723649918168,0.820964,146.06,145.94,20.25098]
[1723649918373,20.0,146.05,145.95,45.12549]
[1723649918583,0.820964,146.06,145.95,45.0]
[1723649918969,0.820964,146.06,145.96,0.12549]
[1723649919804,0.820964,146.06,145.96,0.25098]
[1723649919964,0.820964,146.06,145.97,15.5936]
[1723649920161,0.820964,146.06,145.99,6.128]
[1723649920462,0.820964,146.06,146.0,45.0]
[1723649920869,0.820964,146.06,146.01,0.12549]
[1723649921164,0.820964,146.06,146.02,0.12549]
[1723649921388,0.820964,146.06,146.02,45.0]
[1723649922274,0.820964,146.06,146.01,0.25098]
[1723649922586,0.820964,146.06,146.0,65.12549]
[1723649922785,0.820964,146.06,146.01,0.12549]
[1723649923000,0.820964,146.06,146.01,0.25098]
[1723649923178,0.820964,146.06,146.02,0.12549]
[1723649923494,0.820964,146.06,146.02,0.25098]
[1723649923988,0.820964,146.06,146.03,0.12549]
[1723649924191,381.7,146.15,146.03,0.25098]
[1723649924387,20.0,146.16,146.04,0.25098]
[1723649924695,20.0,146.16,146.05,0.12549]
[1723649924892,299.720964,146.2,146.06,22.4408]
[1723649925090,68.230964,146.2,146.07,45.50196]
[1723649925298,20.820964,146.2,146.08,0.12549]
[1723649925812,0.820964,146.2,146.08,20.12549]
[1723649926092,0.820964,146.2,146.09,45.37647]
[1723649926397,0.820964,146.2,146.1,0.12549]
[1723649926587,0.820964,146.2,146.09,45.37647]
[1723649926891,20.0,146.17,146.06,22.4408]
[1723649927092,47.41,146.18,146.07,20.0]
[1723649927396,47.41,146.18,146.06,22.4408]
[1723649927397,47.41,146.12,146.06,22.4408]
[1723649927973,0.12549,146.15,146.06,22.4408]
[1723649928298,20.50196,146.15,146.06,22.4408]
[1723649928597,0.12549,146.13,146.06,22.4408]
[1723649928890,0.37647,146.13,146.06,22.4408]
[1723649929198,47.41,146.16,146.06,22.4408]
[1723649929698,47.41,146.19,146.06,22.4408]
[1723649929891,47.41,146.19,146.07,0.12549]
[1723649930077,47.41,146.19,146.07,45.50196]
[1723649930279,87.41,146.23,146.09,0.12549]
[1723649930479,87.41,146.23,146.09,45.50196]
[1723649930900,67.41,146.23,146.11,0.12549]
[1723649931124,67.41,146.23,146.11,45.50196]
[1723649931308,40.820964,146.2,146.12,16.0609]
[1723649931701,47.41,146.17,146.12,16.0609]
[1723649932514,0.12549,146.16,146.12,16.0609]
[1723649932835,0.12549,146.16,146.1,6.0415]
[1723649933145,0.12549,146.13,146.1,6.0415]
[1723649933308,0.25098,146.13,146.1,6.0415]
[1723649933504,0.25098,146.13,146.07,22.8606]
[1723649934011,67.53549,146.14,146.07,22.8606]
[1723649934012,47.41,146.14,146.07,22.8606]
[1723649934216,0.12549,146.15,146.07,22.8606]
[1723649935032,47.41,146.16,146.07,22.8606]
[1723649935240,47.41,146.16,146.08,45.12549]
[1723649935626,47.41,146.16,146.09,0.12549]
[1723649935821,402.520964,146.2,146.09,0.12549]
[1723649935822,47.41,146.19,146.09,0.12549]
[1723649936048,47.41,146.16,146.08,0.12549]
[1723649936251,47.41,146.16,146.07,22.8606]
[1723649936956,47.41,146.16,146.08,45.12549]
[1723649938233,0.820964,146.2,146.08,45.12549]
[1723649938456,0.820964,146.2,146.09,0.37647]
[1723649938756,0.820964,146.2,146.1,0.12549]
[1723649939328,0.820964,146.2,146.1,0.25098]
[1723649939545,0.820964,146.2,146.11,0.25098]
[1723649939751,0.820964,146.2,146.12,0.12549]
[1723649940248,47.41,146.18,146.08,45.0]
[1723649940437,47.41,146.18,146.09,0.12549]
[1723649940637,0.25098,146.19,146.09,0.12549]
[1723649940823,0.820964,146.2,146.1,6.5732]
[1723649941023,0.820964,146.2,146.11,45.12549]
[1723649941760,0.820964,146.2,146.12,15.72619]
[1723649941936,0.820964,146.2,146.14,6.5732]
[1723649942128,0.820964,146.2,146.15,0.37647]
[1723649942323,0.820964,146.2,146.15,45.37647]
[1723649942827,0.820964,146.2,146.16,0.12549]
[1723649943057,10.0,146.22,146.19,6.6644]
[1723649943251,10.0,146.22,146.2,45.12549]
[1723649944063,10.0,146.22,146.2,0.12549]
[1723649944241,10.0,146.22,146.19,6.6644]
[1723649945129,10.0,146.22,146.2,0.12549]
[1723649945432,27.423499,146.29,146.21,0.12549]
[1723649945767,10.756899,146.29,146.23,6.78989]
[1723649945940,0.820964,146.35,146.22,15.7618]
[1723649945941,0.820964,146.35,146.27,0.12549]
[1723649946133,0.820964,146.35,146.27,0.50196]
[1723649946333,0.820964,146.35,146.27,65.37647]
[1723649946535,0.820964,146.35,146.27,45.37647]
[1723649946739,47.41,146.33,146.26,6.113]
[1723649947245,67.41,146.33,146.26,6.113]
[1723649947447,47.41,146.3,146.26,6.113]
[1723649947661,8.10545153,146.35,146.27,0.12549]
[1723649947865,0.820964,146.35,146.27,65.25098]
[1723649948332,10.0,146.41,146.3,15.37629]
[1723649948532,10.0,146.41,146.31,20.12549]
[1723649948749,10.0,146.41,146.34,0.12549]
[1723649948967,10.0,146.41,146.34,65.50196]
[1723649950247,10.0,146.41,146.34,65.37647]
[1723649950560,10.0,146.41,146.34,0.12549]
[1723649950741,47.41,146.37,146.28,6.6638]
[1723649950943,47.41,146.33,146.28,6.6638]
[1723649951169,47.41,146.3,146.23,15.6206]
[1723649951743,47.41,146.3,146.22,6.5586]
[1723649952268,0.12549,146.31,146.22,6.5586]
[1723649952562,47.53549,146.32,146.22,6.5586]
[1723649952739,47.41,146.32,146.22,6.5586]
[1723649952944,47.53549,146.35,146.22,6.5586]
[1723649953338,47.41,146.35,146.22,6.5586]
[1723649953578,10.0,146.41,146.24,47.41]
[1723649953579,20.0,146.38,146.24,47.41]
[1723649953767,20.0,146.38,146.22,6.5586]
[1723649953768,67.41,146.37,146.25,20.0]
[1723649953980,47.41,146.34,146.26,45.0]
[1723649954474,47.41,146.34,146.24,0.12549]
[1723649954650,47.41,146.34,146.23,45.25098]
[1723649954855,20.0,146.38,146.23,65.25098]
[1723649955060,47.53549,146.37,146.23,65.25098]
[1723649955367,47.41,146.37,146.23,65.25098]
[1723649955558,47.41,146.37,146.24,47.41]
[1723649955764,67.41,146.4,146.25,65.50196]
[1723649955980,47.41,146.37,146.25,65.50196]
[1723649956150,47.41,146.37,146.25,65.25098]
[1723649956349,47.41,146.34,146.22,6.5586]
[1723649956670,0.12549,146.33,146.23,20.0]
[1723649956857,0.12549,146.33,146.22,6.5586]
[1723649957053,47.41,146.31,146.22,6.5586]
[1723649957649,47.41,146.34,146.22,6.5586]
[1723649957867,0.12549,146.36,146.22,6.5586]
[1723649958176,0.12549,146.36,146.23,0.12549]
[1723649958345,47.41,146.37,146.23,45.12549]
[1723649958556,47.41,146.37,146.25,0.12549]
[1723649958859,47.41,146.37,146.25,45.50196]
[1723649959050,47.41,146.37,146.25,45.37647]
[1723649959051,47.41,146.34,146.25,45.37647]
[1723649959255,47.41,146.31,146.22,6.5586]
[1723649960246,0.12549,146.3,146.22,6.5586]
[1723649960449,47.41,146.28,146.22,6.5586]
[1723649960945,47.41,146.31,146.22,6.5586]
[1723649961362,0.12549,146.3,146.22,6.5586]
[1723649961565,45.37647,146.3,146.22,6.5586]
[1723649961751,47.41,146.28,146.22,6.5586]
[1723649964386,47.53549,146.31,146.22,6.5586]
[1723649964751,47.41,146.31,146.23,45.37647]
[1723649965157,47.41,146.31,146.23,0.25098]
[1723649965467,47.41,146.31,146.23,45.12549]
[1723649965976,47.41,146.34,146.24,0.25098]
[1723649966150,67.41,146.37,146.25,0.12549]
[1723649966479,20.0,146.36,146.25,0.12549]
[1723649966653,47.41,146.37,146.25,0.25098]
[1723649966854,47.41,146.37,146.26,0.25098]
[1723649967052,47.41,146.37,146.27,0.12549]
[1723649967478,47.41,146.37,146.27,0.25098]
[1723649967650,258.9,146.39,146.28,0.12549]
[1723649967861,258.9,146.39,146.28,0.37647]
[1723649968254,258.9,146.39,146.28,45.37647]
[1723649968453,258.9,146.39,146.29,0.12549]
[1723649968662,258.9,146.39,146.29,0.37647]
[1723649968844,258.9,146.39,146.3,0.12549]
[1723649969052,258.9,146.39,146.3,0.37647]
[1723649969874,258.9,146.39,146.3,45.37647]
[1723649971086,47.41,146.4,146.3,45.37647]
[1723649971790,47.41,146.37,146.27,15.4736]
[1723649972152,47.41,146.37,146.22,22.9376]
[1723649973279,47.41,146.37,146.24,0.12549]
[1723649973571,47.41,146.37,146.24,0.25098]
[1723649973776,47.41,146.37,146.25,0.25098]
[1723649973960,47.41,146.37,146.26,0.12549]
[1723649974155,20.12549,146.36,146.24,20.0]
[1723649974372,20.12549,146.36,146.22,22.9376]
[1723649974373,0.12549,146.33,146.22,22.9376]
[1723649974677,47.41,146.31,146.22,22.9376]
[1723649974974,45.50196,146.33,146.09,16.1102]
[1723649974975,20.0,146.22,146.09,16.1102]
[1723649975205,15.2305,146.29,145.91,24.58722968]
[1723649975206,7.13392625,146.37,146.18,6.1829]
[1723649975472,35.04007824,146.49,146.33,47.41]
[1723649975473,24.29782347,146.48,146.33,47.41]
[1723649976167,24.29782347,146.48,146.3,48.37784605]
[1723649976168,4.29782347,146.48,146.36,47.41]
[1723649976376,4.29782347,146.48,146.39,47.41]
[1723649976690,4.29782347,146.48,146.4,65.37647]
[1723649976861,4.29782347,146.48,146.45,47.41]
[1723649977053,4.29782347,146.48,146.46,65.12549]
[1723649977693,4.29782347,146.48,146.47,0.25098]
[1723649977859,0.7131224,146.49,146.47,0.50196]
[1723649978060,0.7131224,146.49,146.47,0.37647]
[1723649978258,0.7131224,146.49,146.46,65.12549]
[1723649978782,0.7131224,146.49,146.46,65.0]
[1723649979357,0.7131224,146.49,146.45,0.25098]
[1723649979551,0.7131224,146.49,146.45,65.0]
[1723649979755,0.7131224,146.49,146.46,0.12549]
[1723649979975,0.7131224,146.49,146.46,0.37647]
[1723649980755,0.7131224,146.49,146.47,47.41]
[1723649980978,0.7131224,146.49,146.48,65.37647]
[1723649981357,15.717,146.61,146.48,65.37647]
[1723649981358,15.717,146.61,146.49,0.12549]
[1723649981961,20.0,146.6,146.48,65.37647]
[1723649982267,15.717,146.61,146.48,45.12549]
[1723649982465,20.0,146.6,146.49,0.12549]
[1723649982653,15.717,146.61,146.48,45.12549]
[1723649983080,15.717,146.61,146.49,0.25098]
[1723649983377,15.717,146.61,146.5,0.12549]
[1723649985472,15.717,146.61,146.5,45.12549]
[1723649986697,0.12549,146.6,146.49,20.12549]
[1723649986864,0.12549,146.6,146.43,47.41]
[1723649986865,67.53549,146.6,146.43,47.41]
[1723649987182,0.12549,146.56,146.43,47.41]
[1723649987383,47.53549,146.54,146.4,47.41]
[1723649987689,20.0,146.55,146.37,47.41]
[1723649987690,47.53549,146.51,146.37,47.41]
[1723649987888,20.25098,146.53,146.33,6.4559]
[1723649987889,0.12549,146.47,146.33,6.4559]
[1723649988385,0.25098,146.5,146.34,47.41]
[1723649988386,0.12549,146.49,146.34,47.41]
[1723649988589,0.12549,146.47,146.34,47.41]
[1723649988788,0.25098,146.49,146.34,47.41]
[1723649988998,20.0,146.45,146.33,6.4559]
[1723649989161,47.41,146.46,146.33,6.4559]
[1723649989982,0.12549,146.45,146.3,47.41]
[1723649990268,0.12549,146.48,146.3,47.41]
[1723649990567,0.12549,146.46,146.35,47.41]
[1723649990780,0.25098,146.46,146.35,47.41]
[1723649991081,0.12549,146.46,146.32,47.41]
[1723649991284,0.12549,146.46,146.33,20.0]
[1723649991578,20.0,146.45,146.33,20.0]
[1723649991782,20.12549,146.47,146.33,20.0]
[1723649992185,20.25098,146.48,146.28,47.41]
[1723649992186,47.41,146.43,146.28,47.41]
[1723649992396,40.25098,146.42,146.28,47.41]
[1723649992607,0.12549,146.39,146.25,53.9928]
[1723649993098,20.12549,146.42,146.25,53.9928]
[1723649993265,47.41,146.43,146.28,47.41]
[1723649993795,0.12549,146.45,146.31,47.41]
[1723649993978,0.12549,146.45,146.32,20.0]
[1723649994184,67.41,146.46,146.33,0.25098]
[1723649994374,67.41,146.46,146.32,20.0]
[1723649994375,20.0,146.44,146.32,20.0]
[1723649994578,47.41,146.46,146.32,20.0]
[1723649994579,67.41,146.46,146.32,20.0]
[1723649994779,20.0,146.44,146.33,0.12549]
[1723649994993,67.41,146.46,146.32,20.0]
[1723649995169,20.0,146.44,146.33,0.12549]
[1723649995376,20.0,146.44,146.32,20.0]
[1723649995582,20.0,146.44,146.33,0.12549]
[1723649995796,0.12549,146.45,146.33,0.12549]
[1723649995977,15.9299,146.47,146.34,47.41]
[1723649996185,15.9299,146.47,146.35,45.12549]
[1723649996886,15.9299,146.47,146.35,0.12549]
[1723649996887,20.0,146.46,146.35,0.12549]
[1723649997189,15.9299,146.47,146.35,0.12549]
[1723649997392,20.0,146.46,146.35,0.37647]
[1723649997604,20.0,146.44,146.34,47.41]
[1723649997772,20.0,146.44,146.27,47.41]
[1723649997773,20.0,146.42,146.27,47.41]
[1723649997973,40.0,146.42,146.27,47.41]
[1723649998171,20.0,146.42,146.27,47.41]
[1723649998628,0.25098,146.41,146.27,47.41]
[1723649998789,0.12549,146.42,146.3,47.41]
[1723649999175,47.41,146.43,146.3,47.41]
[1723649999398,87.41,146.46,146.31,20.0]
[1723649999579,45.50196,146.45,146.31,20.0]
[1723649999781,0.25098,146.45,146.33,47.41]
[1723649999982,0.25098,146.45,146.34,0.12549]
[1723650000195,20.0,146.45,146.34,0.12549]
[1723650000375,20.0,146.45,146.33,47.41]
[1723650000776,35.9299,146.47,146.33,47.41]
[1723650000981,20.0,146.45,146.33,47.41]
[1723650001379,0.25098,146.44,146.33,47.41]
[1723650001786,0.25098,146.44,146.1,19.28373199]
[1723650001787,0.12549,146.4,146.27,47.41]
[1723650001983,67.53549,146.43,146.27,47.41]
[1723650002292,45.25098,146.42,146.27,47.41]
[1723650002498,0.12549,146.4,146.27,47.41]
[1723650002708,0.12549,146.38,146.27,47.41]
[1723650003625,20.0,146.37,146.24,47.41]
[1723650003788,0.12549,146.39,146.27,47.41]
[1723650004325,0.12549,146.4,146.27,47.41]
[1723650004502,0.12549,146.38,146.27,47.41]
[1723650004700,0.12549,146.38,146.23,54.54315721]
[1723650005018,45.12549,146.4,146.24,0.25098]
[1723650005019,0.12549,146.4,146.24,0.25098]
[1723650005211,0.12549,146.4,146.28,47.41]
[1723650005397,0.12549,146.4,146.29,0.12549]
[1723650005714,20.0,146.39,146.25,47.41]
[1723650005915,0.12549,146.38,146.26,20.25098]
[1723650006219,45.0,146.4,146.27,0.12549]
[1723650006401,20.0,146.41,146.27,0.12549]
[1723650007020,20.0,146.39,146.26,20.25098]
[1723650007196,20.0,146.41,146.27,45.12549]
[1723650007396,20.0,146.41,146.28,0.12549]
[1723650007595,45.25098,146.4,146.28,0.12549]
[1723650007812,0.12549,146.39,146.28,0.12549]
[1723650008011,0.12549,146.35,146.26,20.0]
[1723650008196,53.7497,146.39,146.25,47.41]
[1723650008415,258.9,146.44,146.31,47.41]
[1723650008624,388.0397,146.45,146.31,47.41]
[1723650009007,388.0397,146.45,146.24,20.0]
[1723650009008,278.9,146.49,146.34,47.41]
[1723650009215,278.9,146.49,146.35,0.25098]
[1723650009396,278.9,146.49,146.35,45.37647]
[1723650009596,35.9299,146.47,146.35,45.37647]
[1723650009799,15.9299,146.47,146.35,45.37647]
[1723650010010,35.9299,146.47,146.35,0.37647]
[1723650010238,15.9299,146.47,146.36,0.12549]
[1723650010425,15.9299,146.47,146.37,47.41]
[1723650010630,73.7497,146.51,146.38,45.12549]
[1723650010812,73.7497,146.51,146.39,0.12549]
[1723650011248,6.3397,146.51,146.39,0.12549]